bitfinex-derivatives/quotes_ETHF0:USTF0_20250923
["timestamp","ask_amount","ask_price","bid_price","bid_amount"]
[1758638409342,0.4174,4179.2,4179.1,0.89422]
[1758638409548,0.7371,4179.2,4179.1,0.89422]
[1758638410150,0.7371,4179.2,4179.1,0.4638]
[1758638410448,0.7371,4179.2,4179.1,0.89422]
[1758638410949,0.7371,4179.2,4179.1,0.68742]
[1758638411152,0.7371,4179.2,4179.1,0.89422]
[1758638412750,0.7371,4179.2,4179.1,0.257]
[1758638413050,0.7371,4179.2,4178.7,4.06473756]
[1758638413249,0.745,4178.8,4178.7,4.49519756]
[1758638413459,0.745,4178.8,4178.7,3.2078]
[1758638413752,0.745,4178.8,4178.5,0.85673298]
[1758638413753,1.17545,4178.8,4178.5,0.85673298]
[1758638413947,0.3388,4178.5,4178.4,0.257]
[1758638414147,0.875,4178.5,4178.4,0.4624]
[1758638414352,0.875,4178.5,4178.4,1.74962298]
[1758638414548,0.875,4178.5,4178.4,0.89289]
[1758638414947,0.875,4178.5,4178.4,0.4624]
[1758638415157,0.875,4178.5,4178.4,0.89289]
[1758638415353,0.5362,4178.5,4178.4,2.29352298]
[1758638415553,0.5362,4179.5,4179.4,0.4146]
[1758638415758,0.5362,4179.5,4179.4,2.03705126]
[1758638416049,0.5362,4179.5,4179.4,1.17969]
[1758638416258,0.5362,4179.5,4179.4,2.03705126]
[1758638416464,0.745,4179.5,4179.4,1.27196126]
[1758638416649,0.875,4179.5,4179.4,1.49315126]
[1758638416955,0.875,4179.5,4179.4,1.70235126]
[1758638417158,0.875,4179.5,4179.4,0.84499]
[1758638417351,0.875,4179.5,4179.2,1.71644189]
[1758638417551,0.745,4179.3,4179.2,1.49144189]
[1758638417752,0.745,4179.3,4179.2,1.92184189]
[1758638418955,0.745,4179.3,4179.2,2.13104189]
[1758638419156,1.17539,4179.3,4179.2,1.70064189]
[1758638419553,0.43042,4179.1,4178.9,1.28604189]
[1758638419852,0.875,4179.0,4178.9,0.2054]
[1758638420067,1.30543,4179.0,4178.9,0.2054]
[1758638420264,1.17545,4178.8,4178.7,1.54204189]
[1758638420557,1.17546,4178.7,4178.6,0.85793897]
[1758638420747,1.17546,4178.7,4178.3,1.28604189]
[1758638420748,0.43049,4178.4,4178.3,0.85793897]
[1758638420949,1.38197371,4178.4,4178.2,0.85793897]
[1758638421158,0.95148371,4178.3,4178.2,0.85793897]
[1758638421455,0.745,4178.1,4178.0,0.256]
[1758638421660,0.95148371,4178.1,4178.0,0.4614]
[1758638421859,0.96082367,4178.1,4178.0,0.256]
[1758638422248,0.96082367,4178.1,4178.0,0.4614]
[1758638423259,1.17835,4177.8,4177.6,1.28604189]
[1758638423453,0.96362367,4177.7,4177.6,1.28604189]
[1758638423660,0.96362367,4177.7,4177.5,1.28604189]
[1758638423846,0.5484,4177.5,4177.4,4.95764189]
[1758638424049,1.08952367,4177.5,4177.4,4.95764189]
[1758638424251,1.52010367,4177.5,4177.4,3.4156]
[1758638424452,0.4306,4177.4,4177.2,1.28604189]
[1758638424755,0.55942367,4177.5,4177.0,0.256]
[1758638424756,0.7478,4177.1,4177.0,0.256]
[1758638424945,0.96362367,4177.1,4177.0,0.4638]
[1758638425145,0.21582367,4177.1,4177.0,0.9817]
[1758638425544,0.4512,4178.0,4177.0,6.97396]
[1758638425762,0.5301,4178.4,4178.3,0.6383]
[1758638426052,0.3253,4178.8,4178.5,0.43047]
[1758638426264,0.5301,4178.7,4178.6,0.84347]
[1758638426647,0.13,4179.0,4178.8,0.43045]
[1758638426849,0.3253,4178.9,4178.8,1.15615]
[1758638427052,0.5301,4178.9,4178.8,1.15615]
[1758638427259,0.5301,4178.9,4178.8,0.7257]
[1758638427564,0.5301,4178.9,4178.8,0.413]
[1758638428554,0.7478,4178.9,4178.8,0.413]
[1758638428947,0.4225,4178.5,4178.4,3.4156]
[1758638429151,0.8737,4178.5,4178.4,0.2078]
[1758638429754,0.8737,4178.5,4178.1,0.43052]
[1758638429755,0.7478,4178.2,4178.1,0.43052]
[1758638430155,0.7478,4177.6,4177.3,1.28604189]
[1758638430351,0.5301,4177.2,4177.1,0.63842]
[1758638430549,0.21551022,4177.2,4177.1,1.15632]
[1758638430754,0.4608,4177.9,4177.8,0.2078]
[1758638430955,0.74550783,4177.9,4177.8,0.2078]
[1758638431153,0.43057,4177.6,4177.1,0.256]
[1758638431351,0.7478,4177.4,4177.3,0.2078]
[1758638431556,0.21540783,4177.4,4177.3,0.8436]
[1758638431757,0.21540783,4177.4,4177.3,4.3641]
[1758638431953,0.3253,4178.1,4177.9,0.43054]
[1758638432154,0.5301,4178.1,4178.0,0.2078]
[1758638432361,0.74550068,4178.1,4178.0,0.7257]
[1758638433358,0.1259,4178.0,4177.5,0.5687]
[1758638433661,0.74550068,4177.9,4177.8,0.84355]
[1758638434067,0.74550068,4177.9,4177.8,1.15625]
[1758638435461,0.8778,4179.0,4177.9,0.3127]
[1758638435768,0.5301,4178.6,4178.5,0.84348]
[1758638436561,0.5301,4178.6,4178.5,1.15618]
[1758638436760,0.8778,4179.0,4178.9,0.43044]
[1758638437654,0.55628,4179.5,4179.1,0.43041]
[1758638437966,0.2048,4179.2,4179.1,0.2078]
[1758638438158,0.4225,4179.2,4179.1,0.43042]
[1758638438464,0.4225,4179.2,4178.9,0.18774111]
[1758638438465,1.30413,4179.0,4178.9,0.18774111]
[1758638438762,0.3253,4178.9,4178.8,0.43044]
[1758638438959,0.7478,4178.7,4178.6,0.43047]
[1758638439369,0.7478,4178.7,4178.6,0.63827]
[1758638439555,0.7478,4178.7,4178.6,0.84347]
[1758638439962,0.1259,4179.5,4178.6,0.7257]
[1758638440261,0.7478,4179.3,4179.2,0.63821]
[1758638440959,0.7478,4179.3,4178.6,1.28604189]
[1758638441160,0.7478,4179.1,4179.0,0.43042]
[1758638441361,0.7478,4179.1,4179.0,0.63822]
[1758638441967,0.3307,4179.5,4179.4,0.63819]
[1758638442154,0.656,4179.5,4179.4,0.84339]
[1758638442356,0.5301,4179.5,4179.4,0.84339]
[1758638442569,3.2078,4179.6,4179.4,0.84339]
[1758638442570,3.2078,4179.6,4179.5,0.74307]
[1758638442869,3.2078,4179.6,4179.5,1.15607]
[1758638443055,0.1259,4179.5,4179.3,0.43039]
[1758638443365,0.5484,4179.5,4179.4,0.43039]
[1758638443759,0.8737,4179.5,4179.4,0.43039]
[1758638444355,0.3253,4179.5,4179.4,1.15609]
[1758638444771,0.5301,4179.5,4179.4,0.84339]
[1758638445366,3.2078,4179.6,4179.5,1.15607]
[1758638445569,3.5331,4179.6,4179.5,1.15607]
[1758638445765,3.7379,4179.6,4179.5,1.15607]
[1758638445962,3.9556,4179.6,4179.5,0.84337]
[1758638446468,0.5301,4180.0,4179.9,1.15603]
[1758638446667,0.5301,4180.3,4180.2,0.8433]
[1758638447970,0.5301,4180.3,4180.2,1.03367358]
[1758638448274,0.4512,4180.5,4180.4,0.84328]
[1758638448570,0.1259,4181.0,4180.9,0.43023]
[1758638449075,0.1259,4181.0,4180.4,3.2078]
[1758638449269,0.1259,4181.0,4180.7,0.43025]
[1758638449576,0.4512,4180.5,4180.4,3.4638]
[1758638449968,0.4512,4180.5,4180.4,0.256]
[1758638450271,0.3253,4180.5,4180.4,0.99898]
[1758638451369,0.3253,4180.5,4180.4,1.41198]
[1758638451569,0.3253,4180.5,4179.9,3.2078]
[1758638451570,0.8737,4180.0,4179.9,3.2078]
[1758638451877,0.8737,4180.0,4179.9,3.63813]
[1758638452373,0.8737,4180.0,4179.9,3.84593]
[1758638453666,0.7478,4180.0,4179.9,4.05113]
[1758638453870,0.2114,4180.5,4180.4,1.15498]
[1758638454069,0.5595,4180.5,4179.9,3.2078]
[1758638454271,0.5595,4180.5,4180.3,0.43029]
[1758638454472,0.8638,4180.0,4179.4,0.256]
[1758638454675,0.733,4179.6,4179.4,0.68638]
[1758638454872,0.4287,4179.6,4179.5,0.63377]
[1758638455475,0.733,4179.6,4179.5,0.63377]
[1758638455675,0.733,4179.6,4179.5,0.43037]
[1758638458065,0.5157,4179.2,4179.1,1.10442]
[1758638458282,3.2078,4179.8,4179.2,0.3067]
[1758638458470,3.6365,4179.8,4179.7,0.43035]
[1758638458965,3.6365,4179.8,4179.7,0.94045]
[1758638459170,3.4192,4179.8,4179.7,1.15505]
[1758638459676,3.6365,4179.8,4179.7,1.15505]
[1758638460084,0.4287,4179.8,4179.7,1.15505]
[1758638460275,0.2114,4180.2,4180.1,1.15501]
[1758638461181,3.2078,4180.3,4180.2,1.155]
[1758638461384,3.4192,4180.3,4180.2,1.155]
[1758638462483,0.2114,4181.0,4180.9,0.418]
[1758638462779,3.4192,4181.4,4181.3,0.7247]
[1758638462965,0.2114,4181.4,4181.3,0.7247]
[1758638463166,0.3043,4181.8,4181.3,0.7247]
[1758638463372,3.3017,4182.0,4181.3,0.7247]
[1758638463373,3.5121,4182.0,4181.8,0.43013]
[1758638463577,0.3043,4182.0,4181.9,0.3067]
[1758638463784,0.256,4182.3,4182.0,0.43012]
[1758638463975,0.3043,4182.2,4182.0,0.43012]
[1758638464377,0.256,4182.3,4181.8,0.3067]
[1758638464577,0.256,4182.3,4182.0,0.43011]
[1758638464578,0.5603,4182.2,4182.0,0.43011]
[1758638464783,0.23912,4182.3,4181.5,0.1244]
[1758638464784,0.23912,4182.3,4181.9,0.43012]
[1758638464976,0.3043,4182.1,4181.5,0.1244]
[1758638465278,0.256,4182.2,4182.0,0.43011]
[1758638465477,0.5603,4182.2,4182.0,0.73681]
[1758638465678,0.3043,4182.1,4181.6,0.3067]
[1758638465878,0.3043,4182.1,4181.5,0.4311]
[1758638466077,0.3043,4182.1,4182.0,0.43011]
[1758638466283,3.6365,4182.5,4182.4,0.94018]
[1758638466484,3.4192,4182.5,4182.4,1.15478]
[1758638466978,3.2078,4182.5,4182.4,1.15478]
[1758638467178,3.2078,4182.5,4182.2,0.94019]
[1758638467179,0.4287,4182.3,4182.2,0.94019]
[1758638467489,0.733,4182.3,4182.2,0.94019]
[1758638468286,0.4287,4182.3,4182.2,1.15479]
[1758638468485,0.2334,4182.9,4182.8,1.15473]
[1758638469176,0.022,4182.9,4182.8,1.15473]
[1758638470879,4.06645,4183.6,4182.8,1.3818]
[1758638471181,4.06645,4183.6,4182.7,3.2078]
[1758638471182,0.3043,4183.4,4183.1,0.3067]
[1758638471374,0.4287,4183.5,4182.8,0.3067]
[1758638471375,0.3043,4183.1,4182.8,0.3067]
[1758638471580,0.7324,4182.9,4182.8,0.94013]
[1758638472387,0.4287,4182.9,4182.8,0.94013]
[1758638472592,0.4287,4182.9,4182.8,1.15343]
[1758638473177,0.2114,4182.9,4182.8,1.15343]
[1758638473374,0.5121,4183.2,4183.1,0.2221]
[1758638473580,0.425,4183.0,4182.9,0.3364]
[1758638473782,0.7287,4183.0,4182.9,0.3364]
[1758638474088,0.7287,4183.0,4182.9,0.98853]
[1758638474283,0.425,4183.0,4182.9,0.98853]
[1758638474589,1.15869,4183.2,4183.1,0.9885]
[1758638474782,0.7287,4183.2,4183.1,0.9885]
[1758638475288,0.7287,4183.2,4182.6,1.33013]
[1758638475289,0.2084,4182.7,4182.6,0.98856]
[1758638475589,0.2084,4182.7,4182.6,1.20186]
[1758638476583,0.425,4182.7,4182.6,1.20186]
[1758638476980,0.2084,4182.7,4182.6,1.20186]
[1758638477289,0.5121,4183.0,4182.9,0.98853]
[1758638477992,0.5121,4183.0,4182.9,1.20183]
[1758638478377,3.2078,4183.1,4183.0,0.43001]
[1758638478687,3.4162,4183.1,4183.0,1.32811]
[1758638479475,3.6328,4183.1,4183.0,1.32811]
[1758638479680,3.6328,4183.1,4183.0,0.8981]
[1758638479885,4.3665,4183.1,4183.0,0.8981]
[1758638480100,3.9365,4183.1,4183.0,0.2221]
[1758638480291,3.9365,4183.1,4182.7,0.3364]
[1758638480485,0.7287,4183.0,4182.9,0.43003]
[1758638481184,0.425,4182.9,4182.8,0.2221]
[1758638481379,0.7287,4182.9,4182.8,0.98853]
[1758638481579,3.4162,4183.1,4183.0,0.55631]
[1758638481879,3.4162,4183.1,4182.5,0.3794]
[1758638481880,0.5203,4182.9,4182.8,0.3364]
[1758638482082,0.7287,4182.9,4182.8,1.20183]
[1758638482487,3.2078,4183.1,4183.0,1.32811]
[1758638482688,3.6328,4183.6,4183.5,1.32806]
[1758638483488,3.2078,4183.6,4183.5,1.32806]
[1758638484982,3.9325,4183.6,4183.5,0.5585]
[1758638485194,3.2078,4183.6,4183.5,1.32366]
[1758638485490,3.2078,4183.6,4183.5,0.8937]
[1758638485794,4.36245,4183.6,4183.5,0.7629]
[1758638486089,3.9325,4183.6,4183.5,0.3364]
[1758638486293,3.9325,4183.6,4183.3,0.517]
[1758638486294,0.5103,4183.4,4183.3,0.517]
[1758638486490,3.63776,4183.6,4183.3,1.15138]
[1758638486698,3.2078,4183.6,4183.5,1.28216]
[1758638487087,3.4222,4184.2,4184.1,1.1513]
[1758638487287,3.2078,4184.2,4184.1,1.1513]
[1758638487487,3.2078,4184.7,4184.1,6.38585]
[1758638487684,3.2078,4184.7,4184.6,0.74095]
[1758638487886,3.2078,4185.2,4185.1,0.7409]
[1758638488494,3.2078,4185.2,4185.1,0.3111]
[1758638489090,3.63759,4185.2,4185.1,0.3111]
[1758638489295,3.2078,4185.2,4185.1,0.3111]
[1758638490893,3.2078,4185.8,4185.1,0.3111]
[1758638491091,3.2078,4185.8,4185.7,0.74084]
[1758638491989,0.1308,4186.5,4185.7,0.74084]
[1758638491990,3.2078,4186.3,4186.1,0.42969]
[1758638492198,3.2078,4186.3,4186.2,0.3111]
[1758638493095,3.5136,4186.3,4186.2,0.3111]
[1758638493492,0.5608,4186.6,4186.5,0.42966]
[1758638493795,3.7686,4186.8,4186.7,0.74073]
[1758638494002,3.2078,4186.8,4186.7,0.74073]
[1758638494301,3.207,4186.8,4186.7,0.74073]
[1758638494492,3.207,4186.8,4186.7,0.3111]
[1758638494899,3.5128,4186.8,4186.7,0.3111]
[1758638495111,0.73543,4186.8,4186.7,0.3111]
[1758638495404,0.3058,4186.6,4186.3,0.3111]
[1758638495698,0.3058,4186.6,4186.2,0.68468]
[1758638495699,0.3058,4186.6,4186.2,0.255]
[1758638495896,0.42966,4186.5,4186.2,0.255]
[1758638496093,0.42968,4186.3,4186.2,0.255]
[1758638496299,0.42968,4186.3,4186.2,0.6653]
[1758638496300,0.64408,4186.3,4186.2,0.6653]
[1758638496801,0.64408,4186.3,4186.2,0.9764]
[1758638497297,0.64408,4186.3,4186.2,0.517]
[1758638497298,1.15438,4186.3,4186.2,0.517]
[1758638497493,0.94984,4186.7,4186.6,0.2059]
[1758638497696,1.15437,4186.4,4186.3,0.517]
[1758638498092,0.4189,4186.4,4186.3,0.7214]
[1758638498502,0.7247,4186.4,4186.3,0.7214]
[1758638498900,0.2144,4185.6,4185.5,3.3386]
[1758638499098,0.2144,4185.6,4185.5,0.8522]
[1758638499493,5.3562,4186.3,4185.5,0.8522]
[1758638499494,3.2078,4186.3,4185.5,0.8522]
[1758638499698,3.4222,4186.3,4186.2,0.7214]
[1758638500201,3.6267,4186.3,4186.2,0.7214]
[1758638500403,3.9325,4186.3,4186.2,0.7214]
[1758638501401,3.4222,4186.3,4186.2,1.15109]
[1758638501596,3.85188,4186.3,4186.2,0.7214]
[1758638501803,3.4222,4186.3,4186.2,1.15109]
[1758638502197,3.4222,4186.3,4186.2,0.7214]
[1758638502403,3.2078,4186.3,4186.2,1.15109]
[1758638502901,3.4222,4186.3,4186.2,1.15109]
[1758638505301,3.2078,4186.8,4186.7,0.2059]
[1758638505504,3.4222,4186.8,4186.7,1.15104]
[1758638505706,3.2078,4186.8,4186.7,1.15104]
[1758638506004,3.9325,4187.3,4187.2,0.94658]
[1758638506607,3.9325,4187.3,4187.2,1.15098]
[1758638506806,3.6267,4187.3,4187.2,1.15098]
[1758638507002,3.9325,4187.3,4187.2,1.15098]
[1758638507608,3.6267,4187.3,4186.8,0.254]
[1758638507807,0.2144,4187.1,4187.0,0.9451]
[1758638508006,3.2078,4187.3,4187.2,0.42958]
[1758638508313,0.131,4188.0,4187.2,0.42958]
[1758638508314,0.22642887,4188.6,4188.5,0.7214]
[1758638508510,0.01202887,4188.6,4188.5,0.8522]
[1758638508705,0.3058,4189.4,4188.7,0.3111]
[1758638508900,0.3058,4189.4,4189.2,0.3111]
[1758638509111,0.1245,4189.5,4189.0,0.68339]
[1758638509409,0.3058,4189.5,4189.4,0.74045]
[1758638509603,3.5136,4189.7,4189.0,0.3848]
[1758638509802,3.5136,4189.7,4189.1,0.254]
[1758638510002,3.5136,4189.7,4189.2,0.42938]
[1758638510210,0.3058,4189.6,4189.4,0.3111]
[1758638510809,0.3058,4189.6,4189.5,0.3111]
[1758638511201,3.4222,4189.7,4189.6,0.4103]
[1758638511402,3.5136,4190.4,4189.7,0.3111]
[1758638511603,3.5136,4190.4,4189.6,0.4103]
[1758638511604,0.2144,4190.2,4190.1,0.517]
[1758638511799,0.2144,4190.2,4190.1,0.7214]
[1758638512406,0.73502,4190.8,4190.1,1.40468]
[1758638512612,0.2144,4190.2,4190.1,0.9754]
[1758638512806,0.42923,4190.7,4190.1,0.9754]
[1758638512807,0.4189,4190.7,4190.6,0.94623]
[1758638513005,0.7247,4190.7,4190.6,0.517]
[1758638513413,0.7538,4190.5,4190.4,3.7757]
[1758638513608,0.2098,4190.5,4190.4,4.2029]
[1758638513803,3.2078,4191.0,4190.9,0.3139]
[1758638514003,0.3259,4191.6,4191.1,0.3139]
[1758638514303,3.2078,4191.7,4190.9,0.254]
[1758638514304,0.42916,4191.4,4190.9,0.254]
[1758638514506,0.1281,4191.5,4190.9,0.254]
[1758638514713,0.42914,4191.6,4190.9,0.254]
[1758638514714,0.3259,4191.6,4191.3,0.42916]
[1758638514909,3.2078,4191.7,4191.2,0.3139]
[1758638515112,0.42916,4191.4,4191.0,0.1216]
[1758638515414,3.63692,4191.7,4191.1,0.3139]
[1758638515616,3.5337,4191.7,4191.2,0.3139]
[1758638515915,3.2078,4191.7,4191.4,0.3139]
[1758638516218,0.4279,4191.3,4191.2,0.254]
[1758638516513,3.2078,4191.7,4191.4,0.42915]
[1758638516713,0.5357,4192.0,4191.9,0.2173]
[1758638516909,0.3259,4192.0,4191.9,0.3139]
[1758638517520,0.75498,4192.1,4191.5,0.1216]
[1758638517717,0.3259,4192.1,4191.6,0.25]
[1758638517915,0.3259,4192.1,4191.6,0.5639]
[1758638518118,0.1281,4192.0,4191.5,0.80474]
[1758638518410,0.1281,4192.0,4191.5,0.254]
[1758638518610,0.3259,4191.9,4191.6,0.3139]
[1758638518811,0.3259,4191.9,4191.8,0.3139]
[1758638519209,0.3259,4191.9,4191.7,0.42912]
[1758638519406,0.4291,4192.0,4191.6,0.74303]
[1758638519615,3.2078,4192.2,4191.4,0.254]
[1758638519813,0.5572,4192.0,4191.0,0.1216]
[1758638520127,0.3259,4191.6,4191.2,0.3139]
[1758638520321,0.3259,4191.4,4191.1,0.42918]
[1758638520514,0.1273,4191.5,4190.9,3.2078]
[1758638520709,0.3259,4191.4,4191.1,0.42918]
[1758638520919,0.3259,4191.3,4191.1,0.74308]
[1758638521217,0.3259,4191.3,4191.2,0.3139]
[1758638521917,0.3259,4191.2,4191.0,0.3139]
[1758638522121,0.3259,4191.4,4191.0,0.3139]
[1758638522320,3.2078,4191.7,4191.6,0.42913]
[1758638522626,3.2078,4191.7,4191.6,0.74303]
[1758638522920,0.3259,4192.0,4191.5,0.1216]
[1758638522921,0.3259,4192.0,4191.7,0.3139]
[1758638523112,0.3259,4192.0,4191.9,0.3139]
[1758638523914,3.63687,4192.2,4191.6,1.07283]
[1758638523915,3.5337,4192.2,4192.0,0.42909]
[1758638524121,3.2078,4192.2,4192.1,0.3139]
[1758638525227,0.42905,4192.4,4192.1,0.74297]
[1758638525421,0.42906,4192.3,4192.2,0.3139]
[1758638525617,0.3259,4192.3,4191.6,0.3139]
[1758638525817,0.75496,4192.3,4192.1,0.42908]
[1758638526036,0.3259,4192.2,4192.1,0.42908]
[1758638526317,0.2098,4192.6,4192.1,0.5238]
[1758638526518,0.2098,4192.9,4192.8,0.4272]
[1758638526723,3.2078,4193.3,4193.2,0.3139]
[1758638527219,3.5337,4193.3,4193.2,0.3139]
[1758638527420,3.2078,4193.3,4193.2,0.3139]
[1758638527616,3.2078,4193.3,4193.1,0.42898]
[1758638527617,0.42892,4193.7,4193.1,0.3139]
[1758638527817,0.3259,4193.5,4193.4,0.42894]
[1758638528016,0.3259,4193.5,4193.4,0.74284]
[1758638528218,0.42894,4193.6,4193.4,0.3139]
[1758638528414,0.42897,4193.2,4193.1,0.3139]
[1758638528619,0.42893,4193.6,4193.3,0.3139]
[1758638528819,0.3259,4193.8,4193.6,0.42892]
[1758638529021,1.072,4194.9,4194.0,0.1216]
[1758638529022,0.3259,4194.9,4194.0,0.1216]
[1758638529221,0.3259,4194.9,4194.8,0.3139]
[1758638529429,3.2078,4195.6,4194.8,0.3139]
[1758638529430,0.3259,4195.5,4194.8,0.3139]
[1758638529619,0.42876,4195.3,4194.8,0.7427]
[1758638529819,0.42877,4195.2,4194.6,0.254]
[1758638530115,0.42878,4195.1,4194.7,0.3139]
[1758638530319,0.42879,4195.0,4194.7,0.254]
[1758638530515,0.3259,4194.8,4194.2,3.2078]
[1758638530827,1.07199,4194.9,4194.2,3.5217]
[1758638531019,0.3259,4194.3,4194.2,3.2078]
[1758638531225,0.42889,4194.0,4193.8,0.254]
[1758638531525,0.42889,4194.0,4193.9,0.3337]
[1758638531730,0.76529,4194.0,4193.9,0.3337]
[1758638532223,0.42885,4194.4,4194.1,0.3337]
[1758638532423,0.42885,4194.4,4194.0,0.1238]
[1758638532620,0.42885,4194.4,4194.1,0.3337]
[1758638533025,0.42885,4194.4,4194.0,0.1238]
[1758638533430,0.42886,4194.3,4194.0,0.1238]
[1758638533630,0.42887,4194.2,4194.1,0.3337]
[1758638533831,0.76527,4194.2,4194.1,0.3337]
[1758638534629,0.3364,4194.2,4194.1,0.3337]
[1758638534826,0.76525,4194.4,4194.1,0.3337]
[1758638535028,0.42884,4194.5,4194.3,0.3337]
[1758638535228,0.42887,4194.2,4194.1,0.3337]
[1758638535424,0.3364,4194.7,4194.1,0.3337]
[1758638535624,0.42886,4194.3,4194.1,0.42887]
[1758638535930,0.42888,4194.1,4194.0,0.3337]
[1758638536534,1.07204,4194.7,4193.9,0.42889]
[1758638536835,0.3364,4194.6,4194.0,0.5877]
[1758638537031,0.3364,4194.6,4194.0,1.01658]
[1758638537231,0.42887,4194.2,4194.1,0.3337]
[1758638537426,0.3364,4193.7,4193.6,3.2078]
[1758638537629,0.0985,4194.5,4193.7,0.3337]
[1758638537630,0.3364,4194.4,4193.7,0.3337]
[1758638537832,3.2078,4194.8,4194.3,0.42885]
[1758638537833,0.42883,4194.6,4194.3,0.42885]
[1758638538033,3.2078,4194.8,4194.6,0.76252]
[1758638538334,0.4288,4194.9,4194.6,0.3337]
[1758638538639,0.3364,4195.2,4195.0,0.76248]
[1758638538825,0.42876,4195.2,4195.1,0.3337]
[1758638539336,0.76516,4195.2,4195.1,0.3337]
[1758638540231,1.07179,4195.7,4195.1,0.3337]
[1758638540432,0.42875,4195.3,4195.1,0.3337]
[1758638540631,0.3364,4195.2,4195.1,0.3337]
[1758638541431,1.07179,4195.7,4195.1,0.3337]
[1758638541432,0.3364,4195.7,4195.1,0.3337]
[1758638541636,0.42873,4195.5,4195.1,0.3337]
[1758638541937,0.76514,4195.5,4195.0,4.01338]
[1758638542126,1.07166,4196.2,4195.1,0.3337]
[1758638542127,0.42875,4195.3,4195.1,0.3337]
[1758638542831,0.42875,4195.4,4195.3,0.3337]
[1758638543039,0.4288,4194.9,4194.5,3.6521]
[1758638543232,0.23838,4195.3,4194.5,3.3316]
[1758638543434,0.42882,4194.7,4194.5,3.3316]
[1758638543835,0.42882,4194.7,4194.6,0.7384]
[1758638544035,0.63202,4194.7,4194.6,0.7384]
[1758638544537,0.42881,4194.8,4194.6,0.4179]
[1758638544742,0.8527,4194.9,4194.5,3.3316]
[1758638544940,0.8527,4194.9,4194.5,3.2078]
[1758638544941,1.16252,4194.6,4194.5,3.2078]
[1758638545336,0.42886,4194.3,4194.2,0.3205]
[1758638545537,0.42888,4194.1,4194.0,3.5846]
[1758638545836,0.85276,4194.3,4194.2,0.2129]
[1758638546036,1.16256,4194.3,4194.2,0.2129]
[1758638546746,1.16258,4194.1,4194.0,3.4608]
[1758638547439,1.16258,4194.1,4194.0,3.5283]
[1758638547643,0.7337,4194.1,4194.0,3.7412]
[1758638547942,3.2078,4194.8,4194.5,0.2129]
[1758638548150,0.4288,4194.8,4194.7,0.7384]
[1758638548339,0.4288,4194.8,4194.7,0.3205]
[1758638548536,0.42882,4194.6,4194.5,3.5283]
[1758638548735,0.73862,4194.6,4194.5,3.5283]
[1758638548947,0.42887,4194.2,4194.1,0.5735]
[1758638549245,0.42886,4194.3,4194.2,0.3205]
[1758638549841,4.58961,4194.9,4194.2,0.3205]
[1758638550148,0.42886,4194.3,4194.2,0.3205]
[1758638550445,0.42881,4194.8,4194.6,0.42882]
[1758638550641,3.6366,4194.9,4194.8,0.3205]
[1758638550945,0.3098,4194.6,4194.5,0.68183]
[1758638551143,0.42881,4194.8,4194.5,0.68183]
[1758638551344,0.513,4195.0,4194.9,0.84669]
[1758638551545,0.513,4195.3,4195.2,0.84665]
[1758638551847,0.94175,4195.3,4195.2,0.84665]
[1758638552050,0.513,4195.3,4195.2,0.84665]
[1758638552344,0.94175,4195.3,4195.2,0.84666]
[1758638552744,0.513,4195.3,4195.2,0.84666]
[1758638553046,0.513,4195.3,4195.2,1.16716]
[1758638553245,0.63192,4195.6,4195.5,0.2129]
[1758638553447,0.513,4195.6,4195.5,0.7384]
[1758638553744,0.513,4195.6,4195.4,0.42873]
[1758638553745,0.3098,4195.4,4195.3,0.68175]
[1758638555248,0.3098,4195.4,4195.3,0.253]
[1758638555645,0.3098,4195.2,4195.1,3.07123]
[1758638555846,0.3098,4195.2,4195.1,3.32423]
[1758638556346,0.73856,4195.2,4195.1,3.32423]
[1758638556549,0.73856,4195.2,4195.1,0.253]
[1758638556753,0.3098,4195.2,4195.1,0.253]
[1758638556952,0.3098,4195.2,4195.1,3.4608]
[1758638557143,0.73856,4195.2,4195.1,3.4608]
[1758638557451,1.2150978,4195.2,4195.1,3.4608]
[1758638557848,0.73861,4194.7,4194.6,3.2078]
[1758638558047,1.2151478,4194.7,4194.6,3.4608]
[1758638559453,1.2151478,4194.7,4194.6,3.2078]
[1758638559643,1.2151478,4194.7,4193.3,1.0724]
[1758638559644,1.19341,4194.5,4194.2,0.253]
[1758638559845,0.73866,4194.3,4194.2,0.253]
[1758638560152,1.2151978,4194.3,4194.2,0.253]
[1758638560761,0.3098,4194.2,4194.1,3.2078]
[1758638560949,0.7863378,4194.2,4194.1,3.2078]
[1758638561348,0.42897,4193.2,4193.0,3.2078]
[1758638561549,0.3098,4193.1,4193.0,3.2078]
[1758638561749,0.3098,4193.1,4193.0,3.4608]
[1758638561949,0.3098,4193.4,4193.3,0.42896]
[1758638562143,0.3098,4193.4,4193.3,0.68196]
[1758638562749,0.3098,4193.4,4193.3,0.253]
[1758638562948,0.73875,4193.4,4193.0,3.63678]
[1758638563148,0.73875,4193.4,4193.1,0.253]
[1758638563149,0.3098,4193.4,4193.1,0.253]
[1758638563354,0.4311,4193.5,4193.4,0.42895]
[1758638563649,0.4311,4193.5,4193.4,0.68195]
[1758638564056,0.4311,4193.5,4193.4,0.253]
[1758638564249,0.42895,4193.4,4193.1,0.42897]
[1758638564451,0.3098,4193.3,4193.2,0.253]
[1758638565249,0.1213,4193.5,4193.3,0.42896]
[1758638565444,0.1213,4193.5,4193.2,0.253]